bitfinex-derivatives/quotes_SOLF0:USTF0_20240911
["timestamp","ask_amount","ask_price","bid_price","bid_amount"]
[1726077059863,2.7896,133.46,133.38,28.81]
[1726077060363,2.7896,133.46,133.41,3.7474]
[1726077060364,3.7469,133.44,133.41,3.7474]
[1726077060564,7.47272096,133.44,133.41,3.7474]
[1726077060768,3.72582096,133.44,133.38,3.7483]
[1726077061062,1.4044,133.45,133.35,28.81]
[1726077061266,3.7473,133.43,133.39,3.748]
[1726077061463,5.18232772,133.45,133.35,28.81]
[1726077062666,5.18232772,133.45,133.33,28.81]
[1726077062975,5.18232772,133.45,133.34,28.81]
[1726077063575,3.7479,133.41,133.37,3.7486]
[1726077063875,5.18232772,133.45,133.34,28.81]
[1726077064070,3.7475,133.42,133.38,3.7484]
[1726077064575,5.18232772,133.45,133.36,28.81]
[1726077065072,8.92892772,133.45,133.41,3.7474]
[1726077066873,3.7468,133.44,133.41,3.7474]
[1726077067075,5.18232772,133.45,133.41,3.7474]
[1726077067281,1.4044,133.45,133.41,3.7474]
[1726077067580,5.16414696,133.45,133.34,28.81]
[1726077067791,1.4044,133.45,133.34,28.81]
[1726077067985,3.7473,133.43,133.39,3.748]
[1726077068280,7.56225088,133.43,133.34,28.81]
[1726077068487,3.7473,133.43,133.39,3.748]
[1726077068683,3.7468,133.44,133.34,28.81]
[1726077068889,3.7468,133.44,133.36,28.81]
[1726077069078,3.78645872,133.44,133.36,28.81]
[1726077069376,3.78645872,133.44,133.39,28.81]
[1726077069582,2.7896,133.46,133.41,3.7474]
[1726077069774,2.7896,133.46,133.39,28.81]
[1726077069978,6.46696372,133.46,133.37,28.81]
[1726077070174,2.7896,133.46,133.37,28.81]
[1726077070375,3.7466,133.45,133.37,28.81]
[1726077070776,3.81157681,133.45,133.37,28.81]
[1726077071075,3.7468,133.44,133.37,28.81]
[1726077071274,6.5055781,133.46,133.37,28.81]
[1726077071475,3.7472,133.43,133.37,28.81]
[1726077071676,7.45156072,133.43,133.37,28.81]
[1726077071978,2.7896,133.46,133.37,28.81]
[1726077072479,3.7474,133.42,133.37,28.81]
[1726077072783,6.62103806,133.46,133.34,28.81]
[1726077072984,2.7896,133.46,133.39,3.748]
[1726077073186,2.7896,133.46,133.34,28.81]
[1726077073187,3.747,133.44,133.34,28.81]
[1726077073482,3.7332249,133.43,133.34,28.81]
[1726077073679,3.7332249,133.43,133.39,3.7479]
[1726077074176,7.4803249,133.43,133.39,3.7479]
[1726077074381,3.7471,133.43,133.39,3.7479]
[1726077075084,7.56120565,133.43,133.39,3.7479]
[1726077075481,3.81410565,133.43,133.34,28.81]
[1726077075785,2.7896,133.46,133.37,28.81]
[1726077075985,3.7466,133.45,133.41,3.7474]
[1726077076576,3.7466,133.45,133.37,28.81]
[1726077076777,3.74287702,133.44,133.37,28.81]
[1726077076977,3.7466,133.45,133.37,28.81]
[1726077077177,3.7468,133.44,133.37,28.81]
[1726077077788,3.7468,133.44,133.39,3.7481]
[1726077078084,3.7471,133.43,133.39,3.7481]
[1726077078383,3.6658502,133.43,133.38,3.7483]
[1726077078583,3.7473,133.42,133.38,3.7483]
[1726077078781,3.7473,133.42,133.34,28.81]
[1726077078987,3.76068252,133.43,133.39,3.7482]
[1726077079183,3.7472,133.43,133.39,3.7482]
[1726077079378,1.3225,133.45,133.34,28.81]
[1726077079379,3.73069601,133.44,133.34,28.81]
[1726077079579,3.73069601,133.44,133.37,28.81]
[1726077079781,7.47769601,133.44,133.37,28.81]
[1726077080284,3.7471,133.43,133.39,3.748]
[1726077080588,3.73069601,133.44,133.37,28.81]
[1726077080784,1.3225,133.45,133.38,3.7483]
[1726077081289,3.7476,133.42,133.38,3.7483]
[1726077081976,3.7476,133.42,133.39,3.7481]
[1726077082185,3.7471,133.43,133.34,28.81]
[1726077082483,3.7471,133.43,133.39,3.748]
[1726077083487,3.7474,133.42,133.39,3.748]
[1726077083690,3.7474,133.42,133.34,28.81]
[1726077084076,3.7474,133.42,133.33,3.81972896]
[1726077084288,3.7474,133.42,133.36,17.99]
[1726077084489,5.13903238,133.45,133.36,17.99]
[1726077085187,3.7469,133.44,133.4,3.7477]
[1726077085686,5.13903238,133.45,133.36,17.99]
[1726077085687,3.7472,133.43,133.39,3.748]
[1726077085881,5.13903238,133.45,133.39,3.748]
[1726077086790,5.13903238,133.45,133.36,17.99]
[1726077087186,5.13903238,133.45,133.4,3.7478]
[1726077087586,3.7472,133.43,133.4,3.7478]
[1726077087784,5.13903238,133.45,133.36,17.99]
[1726077088187,3.7472,133.43,133.36,17.99]
[1726077088895,3.7472,133.43,133.39,3.7479]
[1726077089091,3.7472,133.43,133.36,17.99]
[1726077089288,3.7469,133.44,133.36,17.99]
[1726077089593,3.7469,133.44,133.4,3.7478]
[1726077089796,3.7472,133.43,133.36,17.99]
[1726077090186,3.7472,133.43,133.39,3.7479]
[1726077090888,5.13903238,133.45,133.39,3.7479]
[1726077091399,3.7473,133.43,133.4,3.7478]
[1726077091894,3.7474,133.42,133.36,17.99]
[1726077092392,3.7471,133.43,133.4,3.7479]
[1726077094692,5.13903238,133.45,133.36,17.99]
[1726077095796,17.99,133.43,133.3,3.81128475]
[1726077096095,17.99,133.41,133.3,17.99]
[1726077096290,3.7486,133.38,133.3,21.69651293]
[1726077096494,1.3773,133.4,133.3,21.69651293]
[1726077096697,3.7484,133.39,133.34,3.7494]
[1726077096996,3.77024381,133.38,133.34,3.7494]
[1726077097194,1.3773,133.4,133.3,17.99]
[1726077097392,1.3773,133.4,133.28,172.55833047]
[1726077097393,17.99,133.37,133.28,172.55833047]
[1726077097695,21.82884823,133.37,133.28,172.55833047]
[1726077097996,25.57764823,133.37,133.33,3.7497]
[1726077098198,7.58764823,133.37,133.33,3.7497]
[1726077099294,7.58764823,133.37,133.34,3.7496]
[1726077099599,3.83884823,133.37,133.28,190.54833047]
[1726077099794,1.3194,133.39,133.3,17.99]
[1726077100000,1.3194,133.39,133.32,17.99]
[1726077100192,2.7074,133.4,133.32,17.99]
[1726077100488,1.3773,133.4,133.34,17.99]
[1726077100691,17.99,133.43,133.34,17.99]
[1726077101000,4.2006,133.44,133.34,17.99]
[1726077101393,7.9475,133.44,133.37,3.7487]
[1726077101597,7.9475,133.44,133.34,17.99]
[1726077101790,7.9475,133.44,133.34,21.76738595]
[1726077101995,7.9475,133.44,133.4,3.7478]
[1726077102497,4.2006,133.44,133.34,32.56738595]
[1726077102698,4.2006,133.44,133.34,28.79]
[1726077103202,7.9476,133.44,133.39,3.748]
[1726077103404,7.9476,133.44,133.34,28.79]
[1726077103897,7.9476,133.44,133.4,3.7477]
[1726077104802,4.2006,133.44,133.41,3.7475]
[1726077105798,4.2006,133.44,133.34,32.46239817]
[1726077105992,2.8274,133.44,133.34,32.46239817]
[1726077106189,2.8274,133.44,133.41,3.7473]
[1726077106390,2.8274,133.44,133.34,32.46239817]
[1726077106595,3.81653238,133.45,133.37,28.79]
[1726077106797,28.79,133.48,133.37,28.79]
[1726077107003,32.62988593,133.48,133.37,28.79]
[1726077107503,3.7463,133.46,133.42,3.7472]
[1726077107715,7.82935897,133.53,133.41,28.79]
[1726077107908,3.66142609,133.53,133.44,28.79]
[1726077108210,3.7444,133.53,133.44,28.79]
[1726077108393,7.57041406,133.53,133.44,28.79]
[1726077108594,6.4067,133.54,133.49,3.7451]
[1726077108803,10.08663105,133.54,133.49,3.7451]
[1726077109301,10.08663105,133.54,133.5,3.7451]
[1726077109704,6.34253105,133.54,133.51,3.7447]
[1726077109905,6.34253105,133.54,133.46,28.79]
[1726077110801,3.7445,133.53,133.49,3.7452]
[1726077111199,3.7445,133.53,133.46,28.79]
[1726077111400,3.7447,133.52,133.44,28.79]
[1726077112101,7.39935307,133.52,133.44,28.79]
[1726077112500,3.745,133.51,133.44,28.79]
[1726077113208,3.7447,133.52,133.47,3.7457]
[1726077113503,3.69811179,133.51,133.47,3.7457]
[1726077113703,7.44301179,133.51,133.47,3.7457]
[1726077113896,3.7449,133.51,133.47,3.7457]
[1726077114096,3.65352914,133.52,133.47,3.7457]
[1726077114303,4.0413,133.54,133.48,3.7456]
[1726077114500,3.68087816,133.53,133.48,3.7456]
[1726077115296,3.7445,133.52,133.48,3.7456]
[1726077116710,3.7448,133.51,133.48,3.7456]
[1726077116905,3.7448,133.51,133.43,28.79]
[1726077117307,3.7448,133.51,133.47,3.7457]
[1726077119117,3.7448,133.51,133.48,3.7456]
[1726077119708,3.7446,133.52,133.43,28.79]
[1726077120304,7.76155164,133.54,133.43,28.79]
[1726077120712,28.79,133.53,133.43,28.79]
[1726077121012,3.7451,133.5,133.43,28.79]
[1726077121210,28.79,133.53,133.43,28.79]
[1726077121609,7.76155164,133.54,133.43,28.79]
[1726077122314,3.7454,133.49,133.43,28.79]
[1726077122711,3.7457,133.48,133.43,28.79]
[1726077123015,28.79,133.53,133.41,28.79]
[1726077123408,3.7459,133.47,133.41,28.79]
[1726077123607,28.79,133.53,133.41,28.79]
[1726077123808,3.7463,133.46,133.42,3.7472]
[1726077124008,3.76545331,133.46,133.41,28.79]
[1726077124211,17.98,133.5,133.41,17.98]
[1726077124907,3.746,133.47,133.43,3.7468]
[1726077125211,7.43390393,133.47,133.43,3.7468]
[1726077125412,3.7462,133.46,133.43,3.7468]
[1726077125610,3.7462,133.46,133.42,3.7472]
[1726077125804,3.68790393,133.47,133.41,17.98]
[1726077126010,3.7466,133.45,133.4,3.76620258]
[1726077126310,3.69050296,133.47,133.39,17.98]
[1726077126505,3.747,133.44,133.37,21.70198485]
[1726077126706,7.44537343,133.44,133.39,3.7481]
[1726077126906,3.69837343,133.44,133.37,17.98]
[1726077127108,3.7473,133.43,133.37,17.98]
[1726077127411,3.68150813,133.43,133.37,17.98]
[1726077127611,3.7475,133.42,133.37,17.98]
[1726077127820,3.78719736,133.42,133.35,21.7293]
[1726077128034,3.7484,133.39,133.33,17.98]
[1726077128315,3.7484,133.39,133.28,169.13208103]
[1726077128316,17.98,133.39,133.28,169.13208103]
[1726077128511,1.3894,133.38,133.29,17.98]
[1726077128910,1.3894,133.38,133.31,3.7504]
[1726077129211,3.7492,133.36,133.31,3.7504]
[1726077129712,5.1334925,133.38,133.3,3.7507]
[1726077129915,3.7497,133.34,133.28,169.13208103]
[1726077130220,3.7497,133.34,133.28,3.7512]
[1726077130521,17.98,133.36,133.27,17.98]
[1726077130818,17.98,133.36,133.3,3.7506]
[1726077131410,23.1134925,133.38,133.28,17.98]
[1726077131814,3.7489,133.37,133.31,3.7502]
[1726077132011,21.7240925,133.38,133.28,17.98]
[1726077132212,2.6573,133.41,133.34,17.98]
[1726077132415,10.14666129,133.41,133.35,3.7491]
[1726077132604,10.14666129,133.41,133.34,17.98]
[1726077132805,6.39886129,133.41,133.34,17.98]
[1726077133814,10.14646129,133.41,133.34,17.98]
[1726077134108,10.14646129,133.41,133.32,17.98]
[1726077134311,10.14646129,133.41,133.33,20.42795548]
[1726077134510,10.14646129,133.41,133.34,7.85748963]
[1726077134724,6.39886129,133.41,133.32,17.98]
[1726077134920,6.39886129,133.41,133.33,20.42985654]
[1726077135117,6.39886129,133.41,133.32,17.98]
[1726077135118,6.39886129,133.41,133.34,7.85763713]
[1726077135417,6.39886129,133.41,133.33,12.57210733]
[1726077135722,6.39886129,133.41,133.37,3.7485]
[1726077135925,6.39886129,133.41,133.33,12.57353899]
[1726077136115,6.39886129,133.41,133.38,3.7484]
[1726077136634,6.39886129,133.41,133.34,7.85839908]
[1726077136922,6.39886129,133.41,133.32,17.98]
[1726077137114,6.39886129,133.41,133.36,3.7487]
[1726077137516,6.39886129,133.41,133.33,7.86096866]
[1726077137711,6.39886129,133.41,133.34,7.86096866]
[1726077137915,6.39886129,133.41,133.34,17.98]
[1726077138124,2.6573,133.41,133.4,3.7479]
[1726077138310,2.6573,133.41,133.36,7.85893783]
[1726077138519,2.6573,133.41,133.35,17.98]
[1726077138825,2.6573,133.41,133.39,3.748]
[1726077139028,2.6573,133.41,133.35,12.5732117]
[1726077139319,2.6573,133.41,133.38,3.7483]
[1726077139726,2.6573,133.41,133.3,9.30575016]
[1726077139727,20.6573,133.41,133.32,18.0]
[1726077139926,3.7479,133.4,133.36,3.7488]
[1726077140127,3.7479,133.4,133.34,7.86200621]
[1726077140318,2.6573,133.41,133.31,15.72359884]
[1726077140517,18.0,133.36,133.27,28.30382909]
[1726077140720,1.3601,133.35,133.28,7.8725673]
[1726077140921,3.72413264,133.34,133.26,12.59606493]
[1726077141231,18.0,133.34,133.27,20.46874925]
[1726077141414,23.03260798,133.34,133.26,12.59606493]
[1726077141723,18.0,133.32,133.27,7.8753564]
[1726077141920,18.0,133.32,133.22,15.7507128]
[1726077142116,3.7509,133.3,133.23,20.48768727]
[1726077142315,18.0,133.3,133.24,20.48768727]
[1726077142526,18.0,133.28,133.23,12.60780755]
[1726077142722,18.0,133.28,133.24,7.88380262]
[1726077143020,3.7516,133.27,133.23,3.7525]
[1726077143222,18.0,133.28,133.18,18.0]
[1726077143425,18.0,133.28,133.19,19.73212818]
[1726077143629,18.0,133.28,133.2,7.58928007]
[1726077143829,5.03260798,133.34,133.21,7.58928007]
[1726077144028,18.0,133.32,133.22,25.58928007]
[1726077144228,33.83260798,133.34,133.23,36.38928007]
[1726077144533,33.83260798,133.34,133.23,28.8]
[1726077144719,3.7508,133.3,133.21,28.8]
[1726077145028,28.8,133.32,133.21,28.8]
[1726077145029,28.8,133.32,133.22,7.58388043]
[1726077145231,3.7508,133.3,133.23,7.58388043]
[1726077145426,28.8,133.31,133.22,12.13539956]
[1726077145731,3.7522,133.25,133.21,3.7531]
[1726077146030,28.8,133.27,133.18,19.73668983]
[1726077146031,3.82486893,133.26,133.18,19.73668983]
[1726077146228,7.57676893,133.26,133.21,3.7532]
[1726077146423,3.82486893,133.26,133.21,3.7532]
[1726077146625,28.8,133.27,133.21,7.59103455]
[1726077146825,3.7517,133.27,133.19,19.73450886]
[1726077147027,3.7517,133.27,133.18,28.8]
[1726077147323,3.7519,133.26,133.21,3.753]
[1726077147629,28.8,133.27,133.21,3.753]
[1726077147828,3.7524,133.24,133.2,11.34240722]
[1726077148029,3.7524,133.24,133.18,19.73141877]
[1726077148334,33.82393387,133.27,133.21,3.7532]
[1726077148335,3.7522,133.25,133.21,3.7532]
[1726077148635,33.82393387,133.27,133.16,28.8]
[1726077148933,1.3458,133.27,133.2,28.8]
[1726077149432,1.3458,133.27,133.23,3.7525]
[1726077150328,1.3458,133.27,133.2,28.8]
[1726077150731,5.14741709,133.27,133.22,3.7527]
[1726077150928,1.3458,133.27,133.18,28.8]
[1726077151128,5.10649912,133.27,133.19,7.59607217]
[1726077151433,3.752,133.26,133.19,7.59607217]
[1726077152138,8.85819912,133.27,133.22,3.7527]
[1726077152627,8.85819912,133.27,133.19,7.59607217]
[1726077152828,5.10649912,133.27,133.19,7.59607217]
[1726077153034,33.92649912,133.27,133.15,28.82]
[1726077153233,3.7529,133.23,133.18,3.7538]
[1726077153438,33.92649912,133.27,133.18,3.7538]
[1726077153624,5.10649912,133.27,133.18,3.7538]
[1726077153828,28.82,133.25,133.16,7.60079744]
[1726077154032,5.10649912,133.27,133.17,28.82]
[1726077154240,5.10649912,133.27,133.18,7.59869391]
[1726077154430,5.10649912,133.27,133.19,28.82]
[1726077154736,1.3458,133.27,133.19,28.82]
[1726077155032,1.3458,133.27,133.15,24.53453341]
[1726077155033,1.3458,133.27,133.21,28.82]
[1726077155234,2.7107,133.28,133.21,28.82]
[1726077155235,1.4031,133.28,133.21,28.82]
[1726077155434,31.6109,133.33,133.24,28.82]
[1726077155733,1.3374,133.32,133.24,28.82]
[1726077156833,3.7504,133.31,133.27,3.7514]
[1726077157331,5.0877,133.32,133.28,3.7511]
[1726077157538,5.03467323,133.32,133.24,28.82]
[1726077157939,3.7504,133.31,133.24,28.82]
[1726077158536,3.7504,133.31,133.27,3.7514]
[1726077158736,5.03467323,133.32,133.24,28.82]
[1726077159242,5.03467323,133.32,133.27,3.7513]
[1726077159840,3.7506,133.31,133.24,28.82]
[1726077160041,5.03467323,133.32,133.24,28.82]
[1726077160244,1.3374,133.32,133.24,28.82]
[1726077160544,1.3374,133.32,133.26,28.82]
[1726077162449,1.3374,133.32,133.24,28.82]
[1726077162944,30.1574,133.32,133.21,28.82]
[1726077163447,3.7509,133.3,133.21,28.82]
[1726077163947,3.7509,133.3,133.26,3.7518]
[1726077164153,30.1574,133.32,133.21,28.82]
[1726077164942,3.7509,133.3,133.21,28.82]
[1726077165448,3.7509,133.3,133.26,3.7517]
[1726077165647,30.1574,133.32,133.21,28.82]
[1726077166445,3.7507,133.3,133.26,3.7518]
[1726077166644,30.1574,133.32,133.21,28.82]
[1726077167049,3.751,133.29,133.25,3.7519]
[1726077167645,3.7514,133.28,133.21,28.82]
[1726077167843,30.1574,133.32,133.21,28.82]
[1726077168153,28.82,133.3,133.19,28.82]
[1726077168343,3.7517,133.27,133.23,3.7526]
[1726077168540,3.75666141,133.26,133.19,28.82]
[1726077168753,28.82,133.3,133.19,28.82]
[1726077168944,28.82,133.3,133.23,3.7525]
[1726077168945,3.7516,133.27,133.23,3.7525]
[1726077169144,28.82,133.3,133.18,28.82]
[1726077169145,3.79813377,133.26,133.18,28.82]
[1726077169345,3.752,133.26,133.22,3.7528]
[1726077169545,3.75872625,133.26,133.18,28.82]
[1726077169747,28.82,133.3,133.18,28.82]
[1726077170447,3.752,133.26,133.22,3.7528]
[1726077170750,3.67653344,133.25,133.22,3.7528]
[1726077171446,7.42863344,133.25,133.18,28.82]
[1726077171654,1.3518,133.27,133.15,28.82]
[1726077171846,3.7523,133.25,133.15,32.6233881]
[1726077172049,3.6712791,133.24,133.2,3.7532]
[1726077172250,3.6712791,133.24,133.15,32.6233881]
[1726077172947,3.7519,133.26,133.22,3.7529]
[1726077173147,3.68224174,133.25,133.22,3.7529]
[1726077174042,7.43434174,133.25,133.21,3.7531]
[1726077174248,3.7521,133.25,133.21,3.7531]
[1726077174647,3.7525,133.24,133.21,3.7531]
[1726077175243,7.52483634,133.24,133.21,3.7531]
[1726077175445,1.3095,133.26,133.21,3.7531]
[1726077175655,5.0007512,133.26,133.21,3.7531]
[1726077175848,5.0007512,133.26,133.22,3.7529]
[1726077176057,3.7523,133.25,133.22,3.7529]
[1726077176953,3.7524,133.24,133.22,3.7529]
[1726077177148,3.7524,133.24,133.15,18.02]
[1726077177149,18.02,133.24,133.15,18.02]
[1726077177548,3.7529,133.23,133.15,18.02]
[1726077177750,18.02,133.24,133.19,3.7536]
[1726077178160,3.7528,133.23,133.19,3.7536]
[1726077179052,18.02,133.24,133.18,3.7539]
[1726077179253,18.02,133.23,133.18,3.7539]
[1726077179456,3.7531,133.22,133.14,169.31147603]
[1726077179660,3.7531,133.22,133.19,3.7536]
[1726077179963,3.7531,133.22,133.14,169.31147603]
[1726077179964,18.02,133.24,133.14,169.31147603]
[1726077180154,3.7528,133.23,133.14,169.31147603]
[1726077180354,18.02,133.22,133.14,169.31147603]
[1726077180554,21.773,133.22,133.14,169.31147603]
[1726077180758,18.02,133.24,133.2,3.7533]
[1726077180957,18.02,133.24,133.15,18.02]
[1726077181164,3.7521,133.25,133.16,18.02]
[1726077181364,23.0207512,133.26,133.16,18.02]
[1726077183071,3.7526,133.24,133.2,3.7535]
[1726077183560,3.7528,133.23,133.19,3.7536]
[1726077183960,18.02,133.24,133.15,18.02]
[1726077184167,3.7533,133.21,133.17,3.7543]
[1726077184470,18.02,133.22,133.14,169.31147603]
[1726077184660,21.773,133.22,133.18,3.7539]
[1726077185062,18.02,133.22,133.18,3.7539]
[1726077186053,21.7731,133.22,133.18,3.7539]
[1726077186463,3.7531,133.22,133.19,3.7537]
[1726077187265,18.02,133.24,133.14,187.33147603]
[1726077187470,3.70860394,133.24,133.16,18.02]
[1726077187667,1.3095,133.26,133.23,3.7525]
[1726077187965,3.80247363,133.25,133.23,3.7525]
[1726077188368,3.80247363,133.25,133.22,3.7528]
[1726077188865,1.3095,133.26,133.21,3.7531]
[1726077189068,23.01820356,133.26,133.16,18.02]
[1726077189268,19.3295,133.26,133.16,18.02]
[1726077189472,19.3295,133.26,133.19,3.7538]
[1726077189473,18.02,133.24,133.19,3.7538]
[1726077189664,21.71875908,133.24,133.19,3.7538]
[1726077189866,21.71875908,133.24,133.14,187.33147603]
[1726077190266,3.7533,133.21,133.14,187.33147603]
[1726077190468,3.69875908,133.24,133.14,169.31147603]
[1726077190669,18.02,133.22,133.17,3.7542]
[1726077190873,3.7532,133.21,133.14,169.31147603]
[1726077191765,3.7532,133.21,133.17,3.7542]
[1726077192173,7.56785589,133.22,133.14,187.33147603]
[1726077192773,18.02,133.24,133.14,187.33147603]
[1726077193674,19.3295,133.26,133.16,18.02]
[1726077193976,3.74305362,133.25,133.18,18.02]
[1726077194777,3.74305362,133.25,133.2,18.02]
[1726077194972,1.3518,133.27,133.2,18.02]
[1726077195172,5.16019184,133.27,133.2,18.02]
[1726077195576,5.16019184,133.27,133.23,3.7526]
[1726077195772,5.16019184,133.27,133.2,18.02]
[1726077196075,5.16019184,133.27,133.24,3.7524]
[1726077196278,5.16019184,133.27,133.2,18.02]
[1726077196469,18.02,133.31,133.22,18.02]
[1726077196669,2.8601,133.33,133.24,18.02]
[1726077196670,1.3204,133.32,133.24,18.02]
[1726077197070,1.4406,133.33,133.27,18.02]
[1726077197277,3.69425435,133.36,133.29,18.02]
[1726077197466,2.8391,133.37,133.29,18.02]
[1726077197467,4.1407,133.37,133.29,18.02]
[1726077197669,3.83032263,133.36,133.29,18.02]
[1726077197870,2.7042,133.37,133.29,18.02]
[1726077198169,2.7042,133.37,133.27,3.72860608]
[1726077198170,3.67643412,133.36,133.32,3.7499]
[1726077198368,3.67643412,133.36,133.28,28.82]
[1726077198779,3.749,133.36,133.31,3.7503]
[1726077198974,3.68731891,133.36,133.26,28.82]
[1726077199169,31.5242,133.37,133.26,28.82]
[1726077199369,3.7496,133.34,133.29,3.7508]
[1726077199570,7.47071644,133.34,133.29,3.7508]
[1726077200070,7.47071644,133.34,133.3,3.7507]
[1726077200270,3.72111644,133.34,133.3,3.7507]
[1726077200467,3.7494,133.35,133.3,3.7507]
[1726077201078,3.65959798,133.34,133.3,3.7507]
[1726077201577,3.65959798,133.34,133.26,28.82]
[1726077201578,3.65959798,133.34,133.31,3.7504]
[1726077201778,3.7491,133.36,133.31,3.7504]
[1726077202272,7.51522995,133.36,133.31,3.7504]
[1726077202472,3.7494,133.35,133.31,3.7504]
[1726077203272,3.69710924,133.34,133.31,3.7504]
[1726077203584,7.44670924,133.34,133.31,3.7504]
[1726077203877,3.7496,133.34,133.31,3.7504]
[1726077204073,31.5242,133.37,133.31,3.7504]
[1726077204380,3.7495,133.35,133.31,3.7504]
[1726077204579,3.84077734,133.34,133.31,3.7504]
[1726077205775,3.84077734,133.34,133.32,3.7501]
[1726077205977,2.7042,133.37,133.29,28.82]
[1726077206677,3.82802352,133.36,133.29,28.82]
[1726077206875,3.82802352,133.36,133.33,3.7497]
[1726077207075,3.82802352,133.36,133.29,28.82]
[1726077207478,7.57722352,133.36,133.31,3.7504]
[1726077207685,7.57722352,133.36,133.29,28.82]
[1726077207893,3.82802352,133.36,133.29,28.82]
[1726077208179,3.7495,133.35,133.26,28.82]
[1726077208478,6.49921361,133.37,133.26,28.82]
[1726077208787,3.7496,133.34,133.3,3.7505]
[1726077208982,3.79013715,133.34,133.26,28.82]
[1726077209191,2.7042,133.37,133.26,28.82]
[1726077209371,3.7497,133.34,133.3,3.7505]
[1726077209687,7.53017569,133.34,133.3,3.7505]
[1726077209885,3.78047569,133.34,133.31,3.7504]
[1726077210186,3.7494,133.35,133.31,3.7504]
[1726077210583,3.7494,133.35,133.32,3.7499]
[1726077210584,3.82886158,133.35,133.32,3.7499]
[1726077210783,3.749,133.36,133.32,3.7499]
[1726077211085,3.84424004,133.35,133.32,3.7499]
[1726077211277,2.7042,133.37,133.31,3.7503]
[1726077211780,3.7494,133.35,133.26,28.82]
[1726077212171,3.7491,133.36,133.32,3.7501]
[1726077212376,2.7042,133.37,133.29,28.82]
[1726077212582,28.82,133.4,133.29,28.82]
[1726077212787,7.83358876,133.46,133.32,28.82]
[1726077212788,28.82,133.42,133.32,28.82]
[1726077213084,32.5832218,133.42,133.32,28.82]
[1726077213285,3.7484,133.39,133.35,3.7491]
[1726077213785,32.5832218,133.42,133.3,28.82]
[1726077213983,3.7486,133.38,133.34,3.7494]
[1726077214784,3.7489,133.37,133.33,3.7496]
[1726077215085,3.7489,133.37,133.3,28.82]
[1726077215786,3.7489,133.37,133.34,3.7495]
[1726077216288,3.7485,133.38,133.3,28.82]
[1726077216487,3.7485,133.38,133.34,3.7494]
[1726077218178,3.7487,133.37,133.34,3.7494]
[1726077219491,3.749,133.36,133.33,3.7498]
[1726077219789,3.753375,133.37,133.33,3.7498]
[1726077219992,3.7489,133.37,133.34,3.7496]
[1726077220191,3.815625,133.36,133.3,18.01]
[1726077220382,18.01,133.39,133.3,18.01]
[1726077220581,3.7486,133.38,133.32,18.01]
[1726077220979,3.7486,133.38,133.34,3.7494]
[1726077221385,3.7486,133.38,133.32,18.01]
[1726077221994,3.7486,133.38,133.28,3.82923666]
[1726077221995,7.47545,133.37,133.3,18.01]
[1726077222182,3.7487,133.37,133.3,18.01]
[1726077222590,3.7487,133.37,133.33,3.7497]
[1726077222793,3.7491,133.36,133.33,3.7497]
[1726077223199,18.01,133.4,133.33,3.7497]
[1726077223497,3.7489,133.37,133.34,3.7495]
[1726077223683,18.01,133.4,133.34,3.7495]
[1726077224093,3.7486,133.38,133.35,3.7492]
[1726077224387,3.70265272,133.37,133.35,3.7492]
[1726077225106,3.70265272,133.37,133.34,3.7494]
[1726077225598,3.70265272,133.37,133.35,3.7493]
[1726077226599,3.70265272,133.37,133.34,3.7495]